[Event "Allsvenskan Div I 3 2023/2024: SS Manhem II - Varbergs SK"]
[Site "Goteborgs schackcentrum, Vegatan 20, Gothenburg, Sweden"]
[Date "2023.12.03"]
[Round "1.6"]
[White "Bengtsson, Siv"]
[Black "Sternerzon, Anders"]
[Result "1-0"]
[TimeControl "90 minutes for 40 moves + 30 minutes for the rest of the game + 30 seconds per move from move one."]
[WhiteFideId "1701673"]
[BlackFideId "1740849"]
[WhiteElo "1995"]
[BlackElo "1734"]

1. e4 {[%clk 01:30:55]} {[%emt 00:00:04]} c5 {[%clk 01:30:41]} {[%emt
00:00:19]} 2. Nf3 {[%clk 01:31:16]} {[%emt 00:00:09]} e6 {[%clk 01:30:58]} 3.
d4 {[%clk 01:31:38]} {[%emt 00:00:21]} cxd4 {[%clk 01:31:25]} 4. Nxd4 {[%clk
01:32:01]} {[%emt 00:00:11]} Nc6 {[%clk 01:31:29]} 5. Nc3 {[%clk 01:31:03]}
{[%emt 00:01:53]} a6 {[%clk 01:30:21]} 6. Nxc6 {[%clk 01:25:30]} {[%emt
00:07:42]} bxc6 {[%emt 00:03:54]} 7. Bd3 {[%emt 00:04:15]} e5 {[%clk 01:25:34]}
8. O-O {[%clk 01:20:49]} {[%emt 00:03:18]} Nf6 {[%clk 01:23:37]} {[%emt
00:02:27]} 9. Re1 {[%clk 01:13:54]} {[%emt 00:07:26]} Be7 {[%clk 01:22:25]}
{[%emt 00:01:42]} 10. a4 {[%clk 01:12:03]} {[%emt 00:02:21]} a5 {[%clk
01:21:11]} {[%emt 00:01:43]} 11. Bc4 {[%clk 01:08:39]} {[%emt 00:03:54]} O-O
{[%clk 01:19:47]} {[%emt 00:01:54]} 12. Qf3 {[%clk 01:04:44]} {[%emt 00:04:25]}
d6 {[%clk 01:18:17]} {[%emt 00:02:01]} 13. Bg5 {[%clk 00:55:29]} {[%emt
00:09:44]} Rb8 {[%clk 01:15:21]} {[%emt 00:03:25]} 14. b3 {[%clk 00:54:19]}
{[%emt 00:01:41]} Be6 {[%clk 01:11:36]} {[%emt 00:04:14]} 15. Bf1 {[%clk
00:45:13]} {[%emt 00:09:37]} Qc7 {[%clk 01:09:23]} {[%emt 00:02:43]} 16. h3
{[%clk 00:43:34]} {[%emt 00:02:09]} h6 {[%clk 01:05:22]} {[%emt 00:04:31]} 17.
Bxf6 {[%clk 00:42:54]} {[%emt 00:01:10]} Bxf6 {[%clk 01:05:23]} {[%emt
00:00:29]} 18. Rad1 {[%clk 00:42:40]} {[%emt 00:00:45]} Rbd8 {[%clk 01:02:53]}
{[%emt 00:02:59]} 19. Ne2 {[%clk 00:38:03]} {[%emt 00:05:08]} d5 {[%clk
00:48:13]} {[%emt 00:15:08]} 20. Ng3 {[%clk 00:38:19]} {[%emt 00:00:15]} d4
{[%clk 00:39:43]} {[%emt 00:09:01]} 21. Nf5 {[%clk 00:37:50]} {[%emt 00:00:59]}
Kh7 {[%clk 00:35:59]} {[%emt 00:04:13]} 22. Be2 {[%clk 00:33:36]} {[%emt
00:04:44]} Be7 {[%clk 00:33:59]} {[%emt 00:02:30]} 23. Qg3 {[%clk 00:28:39]}
{[%emt 00:05:27]} Bf6 {[%clk 00:33:47]} {[%emt 00:00:42]} 24. Nxd4 {[%clk
00:25:15]} {[%emt 00:03:54]} Bc8 {[%clk 00:30:09]} {[%emt 00:04:08]} 25. Nf3
{[%clk 00:21:11]} {[%emt 00:04:35]} Be6 {[%clk 00:29:00]} {[%emt 00:01:38]} 26.
Nd2 {[%clk 00:20:46]} {[%emt 00:00:55]} Bg5 {[%clk 00:26:44]} {[%emt 00:02:47]}
27. Nc4 {[%clk 00:19:50]} {[%emt 00:01:26]} Bf6 {[%clk 00:24:38]} {[%emt
00:02:35]} 28. Qc3 {[%clk 00:19:27]} {[%emt 00:00:53]} Bxc4 {[%clk 00:23:14]}
{[%emt 00:01:54]} 29. Bxc4 {[%clk 00:19:28]} {[%emt 00:00:29]} Qb6 {[%clk
00:22:18]} {[%emt 00:01:26]} 30. Rxd8 {[%clk 00:18:21]} {[%emt 00:01:37]} Qxd8
{[%clk 00:21:50]} {[%emt 00:00:59]} 31. Be2 {[%clk 00:17:07]} {[%emt 00:01:43]}
Qb6 {[%clk 00:17:37]} {[%emt 00:04:43]} 32. Rd1 {[%clk 00:15:51]} {[%emt
00:01:47]} Rc8 {[%clk 00:11:31]} {[%emt 00:06:35]} 33. Bc4 {[%clk 00:09:52]}
{[%emt 00:06:30]} Qc7 {[%clk 00:10:28]} {[%emt 00:01:32]} 34. Rd3 {[%clk
00:06:44]} {[%emt 00:03:38]} Kg8 {[%clk 00:08:57]} {[%emt 00:02:02]} 35. g3
{[%clk 00:05:13]} {[%emt 00:02:01]} Rd8 {[%clk 00:08:04]} {[%emt 00:01:22]} 36.
Kg2 {[%clk 00:05:32]} {[%emt 00:00:12]} Rxd3 {[%clk 00:06:46]} {[%emt
00:01:48]} 37. Bxd3 {[%clk 00:05:48]} {[%emt 00:00:13]} c5 {[%clk 00:05:27]}
{[%emt 00:01:49]} 38. Bc4 {[%clk 00:06:00]} {[%emt 00:00:19]} Bg5 {[%clk
00:04:46]} {[%emt 00:01:10]} 39. Bd5 {[%clk 00:04:50]} {[%emt 00:01:40]} Be7
{[%clk 00:04:15]} {[%emt 00:01:01]} 40. Qc4 {[%clk 00:03:10]} {[%emt 00:02:10]}
Bd6 {[%clk 00:03:53]} {[%emt 00:00:53]} 41. Qb5 {[%clk 00:00:36]} {[%emt
00:03:03]} Kf8 {[%clk 00:02:11]} {[%emt 00:02:12]} 42. Qa6 {[%clk 00:29:12]}
{[%emt 00:01:54]} g6 {[%clk 00:27:26]} {[%emt 00:05:16]} 43. h4 {[%clk
00:25:41]} {[%emt 00:04:00]} Kg7 {[%clk 00:27:06]} {[%emt 00:00:51]} 44. Qa8
{[%clk 00:22:58]} {[%emt 00:03:12]} Bf8 {[%clk 00:23:36]} {[%emt 00:04:00]} 45.
Qa6 {[%clk 00:19:01]} {[%emt 00:04:27]} Bd6 {[%clk 00:23:10]} {[%emt 00:00:55]}
46. Qe2 {[%clk 00:18:58]} {[%emt 00:00:34]} Qe7 {[%clk 00:21:25]} {[%emt
00:02:15]} 47. h5 {[%clk 00:18:24]} {[%emt 00:01:04]} g5 {[%clk 00:18:42]}
{[%emt 00:03:14]} 48. Qg4 {[%clk 00:17:23]} {[%emt 00:01:30]} Qc7 {[%clk
00:17:47]} {[%emt 00:01:24]} 49. Qe2 {[%clk 00:15:38]} {[%emt 00:02:16]} Qe7
{[%clk 00:17:31]} {[%emt 00:00:46]} 50. Qa6 {[%clk 00:15:00]} {[%emt 00:01:08]}
Qc7 {[%clk 00:17:22]} {[%emt 00:00:39]} 51. Kf1 {[%clk 00:14:21]} {[%emt
00:01:10]} Be7 {[%clk 00:05:03]} {[%emt 00:12:49]} 52. Ke2 {[%clk 00:10:48]}
{[%emt 00:04:02]} Bd8 {[%clk 00:03:38]} {[%emt 00:01:53]} 53. Kd3 {[%clk
00:09:04]} {[%emt 00:02:16]} f6 {[%clk 00:01:55]} {[%emt 00:02:13]} 54. Qb7
{[%clk 00:04:50]} {[%emt 00:04:45]} Kf8 {[%clk 00:01:41]} {[%emt 00:00:44]} 55.
Qxc7 {[%clk 00:05:15]} {[%emt 00:00:05]} Bxc7 {[%clk 00:02:10]} {[%emt
00:00:01]} 56. Kc4 {[%clk 00:05:38]} {[%emt 00:00:07]} Ke7 {[%clk 00:02:16]}
{[%emt 00:00:23]} 57. Kxc5 {[%clk 00:06:03]} {[%emt 00:00:05]} Kd7 {[%clk
00:02:15]} {[%emt 00:00:31]} 58. c3 {[%clk 00:05:45]} {[%emt 00:00:46]} Bd8
{[%clk 00:02:11]} {[%emt 00:00:35]} 59. b4 {[%clk 00:04:47]} {[%emt 00:01:29]}
axb4 {[%clk 00:02:39]} {[%emt 00:00:02]} 60. cxb4 {[%clk 00:05:12]} {[%emt
00:00:05]} Be7+ {[%clk 00:01:39]} {[%emt 00:01:29]} 61. Kb5 {[%clk 00:05:35]}
{[%emt 00:00:07]} Kc7 {[%clk 00:01:59]} {[%emt 00:00:10]} 62. a5 {[%clk
00:04:00]} {[%emt 00:02:05]} Bd8 {[%clk 00:01:27]} {[%emt 00:01:02]} 63. Ka6
{[%clk 00:02:42]} {[%emt 00:01:48]} Kb8 {[%clk 00:01:40]} {[%emt 00:00:17]} 64.
b5 {[%clk 00:02:51]} {[%emt 00:00:22]} Be7 {[%clk 00:01:52]} {[%emt 00:00:18]}
65. b6 {[%clk 00:02:57]} {[%emt 00:00:23]} 1-0